bitfinex-derivatives/quotes_SOLF0:USTF0_20241215
["timestamp","ask_amount","ask_price","bid_price","bid_amount"]
[1734297735467,4.6296,218.44,218.32,4.4527]
[1734297735666,9.89347217,218.42,218.32,6.7434]
[1734297736064,9.89347217,218.42,218.32,4.4527]
[1734297736970,9.89347217,218.42,218.35,2.2904]
[1734297737171,2.34,218.44,218.32,4.4527]
[1734297737966,9.89347217,218.42,218.25,5.46343047]
[1734297738170,9.89347217,218.42,218.27,9.89347217]
[1734297739276,9.89347217,218.42,218.31,2.2908]
[1734297739474,9.89347217,218.42,218.27,9.89347217]
[1734297739870,9.89347217,218.42,218.34,2.2905]
[1734297740575,9.89347217,218.42,218.35,2.2904]
[1734297741673,9.89347217,218.42,218.32,2.2907]
[1734297742470,12.18327217,218.42,218.33,2.2907]
[1734297742668,9.89347217,218.39,218.28,2.34]
[1734297742880,2.34,218.38,218.26,6.7971]
[1734297743080,9.89347217,218.36,218.26,4.4571]
[1734297743679,9.89347217,218.36,218.26,3.0374]
[1734297744473,2.34,218.38,218.26,3.0374]
[1734297744875,14.52367217,218.38,218.29,2.291]
[1734297745075,14.52367217,218.38,218.26,3.0374]
[1734297745772,2.2903,218.37,218.28,2.2911]
[1734297745975,9.89347217,218.35,218.26,3.0374]
[1734297747074,9.89347217,218.35,218.27,2.2912]
[1734297747282,9.89347217,218.35,218.26,3.0374]
[1734297747670,9.89347217,218.35,218.28,2.2912]
[1734297747883,2.2904,218.36,218.28,2.2912]
[1734297749584,9.89347217,218.37,218.26,3.0374]
[1734297749788,2.34,218.36,218.26,3.0374]
[1734297749975,2.34,218.38,218.27,9.89347217]
[1734297750175,9.89347217,218.43,218.35,2.2904]
[1734297750575,2.34,218.42,218.27,12.23347217]
[1734297750781,2.34,218.42,218.32,2.2908]
[1734297750981,2.34,218.42,218.27,12.23347217]
[1734297751282,2.34,218.42,218.28,0.84194964]
[1734297751483,2.34,218.42,218.29,0.84194964]
[1734297751684,2.34,218.42,218.3,0.84194964]
[1734297751883,2.34,218.42,218.27,12.23347217]
[1734297752079,2.2899,218.41,218.27,12.23347217]
[1734297752385,2.2899,218.41,218.28,0.84198501]
[1734297752579,2.34,218.42,218.35,2.2904]
[1734297752786,2.34,218.42,218.3,9.89347217]
[1734297752980,2.34,218.42,218.31,0.84195545]
[1734297753282,2.34,218.42,218.3,9.89347217]
[1734297753585,2.34,218.42,218.36,2.2903]
[1734297754187,2.34,218.42,218.3,9.89347217]
[1734297754383,2.34,218.42,218.27,2.34]
[1734297754384,9.89347217,218.38,218.27,2.34]
[1734297754589,2.34,218.37,218.28,0.84202398]
[1734297754790,2.34,218.37,218.26,3.0374]
[1734297754989,2.34,218.37,218.27,0.84207387]
[1734297755190,2.34,218.37,218.26,3.0374]
[1734297755585,2.34,218.37,218.27,0.84208955]
[1734297755794,2.34,218.37,218.26,3.0374]
[1734297755991,2.34,218.37,218.27,0.84208593]
[1734297756201,2.34,218.37,218.26,3.0374]
[1734297757395,2.2904,218.36,218.29,2.2911]
[1734297758192,9.89347217,218.35,218.28,2.2911]
[1734297758900,9.89347217,218.35,218.29,2.2911]
[1734297759697,9.89347217,218.35,218.23,1.463]
[1734297759902,9.89347217,218.31,218.23,1.463]
[1734297760091,9.89347217,218.28,218.2,1.4529]
[1734297760400,2.34,218.27,218.22,2.2918]
[1734297760591,2.34,218.27,218.2,1.4529]
[1734297761093,2.34,218.27,218.24,2.2916]
[1734297761300,2.34,218.27,218.21,5.41438911]
[1734297761503,2.34,218.31,218.21,5.41438911]
[1734297761699,2.34,218.31,218.24,2.2916]
[1734297761905,2.34,218.31,218.21,5.41438911]
[1734297762495,12.23347217,218.31,218.21,5.41438911]
[1734297762693,2.34,218.3,218.21,5.41438911]
[1734297764304,2.34,218.3,218.24,2.2916]
[1734297765003,2.34,218.3,218.22,2.2917]
[1734297765305,2.2911,218.29,218.22,2.2917]
[1734297766297,2.2912,218.28,218.21,7.70628911]
[1734297767000,2.2912,218.28,218.21,5.41438911]
[1734297767194,2.2911,218.29,218.22,2.2918]
[1734297768304,2.34,218.3,218.23,2.2917]
[1734297768502,2.34,218.3,218.21,5.41438911]
[1734297769903,4.631,218.3,218.22,2.2917]
[1734297770302,4.631,218.3,218.21,5.41438911]
[1734297770498,4.631,218.3,218.23,2.2917]
[1734297771908,2.2911,218.29,218.23,2.2917]
[1734297772108,2.34,218.3,218.23,2.2917]
[1734297773507,4.631,218.3,218.23,2.2917]
[1734297774211,4.631,218.3,218.24,2.2916]
[1734297774404,2.34,218.29,218.24,2.2916]
[1734297776010,4.631,218.3,218.24,2.2916]
[1734297776208,2.34,218.3,218.25,2.2915]
[1734297776605,2.34,218.3,218.21,5.41438911]
[1734297777013,51.07630811,218.39,218.21,7.75438911]
[1734297777014,12.18407217,218.34,218.21,7.75438911]
[1734297777214,2.34,218.33,218.21,7.75438911]
[1734297777514,12.23347217,218.34,218.21,7.75438911]
[1734297778114,6.33308639,218.32,218.24,6.33308639]
[1734297778413,2.34,218.34,218.11,14.84817292]
[1734297778613,6.33308639,218.12,217.97,5.4762334]
[1734297778911,6.33308639,217.98,217.88,3.0905]
[1734297779105,6.33308639,217.94,217.77,18.92272779]
[1734297779305,57.18,218.22,217.78,0.8434804]
[1734297779306,6.33308639,217.87,217.78,0.8434804]
[1734297779508,27.48,218.17,217.83,5.5570898]
[1734297779705,6.33308639,217.9,217.83,5.5570898]
[1734297779903,6.33308639,217.9,217.65,50.01286968]
[1734297779904,6.33308639,217.84,217.62,77.53113827]
[1734297780109,12.48559179,217.85,217.72,2.2971]
[1734297780308,4.12380394,217.84,217.72,2.2971]
[1734297780505,4.12380394,217.83,217.72,2.2971]
[1734297780706,4.12380394,217.82,217.75,2.2967]
[1734297781006,27.48,218.12,217.77,9.94559179]
[1734297781215,9.94559179,217.98,217.82,9.94559179]
[1734297781512,9.94559179,217.94,217.82,2.54]
[1734297781713,2.54,217.93,217.79,2.54]
[1734297782015,2.54,217.93,217.81,2.2961]
[1734297782211,2.54,217.93,217.79,2.54]
[1734297782611,2.54,217.93,217.8,1.5241]
[1734297783812,2.54,218.01,217.84,15.90015922]
[1734297784010,15.90015922,218.28,217.88,15.90015922]
[1734297784011,2.54,218.06,217.88,15.90015922]
[1734297784215,2.54,218.05,217.89,2.54]
[1734297784413,5.45283204,218.04,217.92,2.2949]
[1734297784616,5.45283204,218.04,217.89,2.54]
[1734297784912,5.45283204,218.04,217.93,2.2948]
[1734297785219,21.35299126,218.04,217.87,2.54]
[1734297785611,2.294,218.02,217.89,2.2952]
[1734297785807,21.35299126,218.04,217.87,2.54]
[1734297786007,21.35299126,218.04,217.84,15.90015922]
[1734297786211,21.35299126,218.04,217.85,4.0636]
[1734297786410,2.2939,218.03,217.91,2.295]
[1734297786916,21.35299126,218.04,217.87,5.63626401]
[1734297788012,21.35299126,218.04,217.88,2.54]
[1734297788418,21.35299126,218.04,217.93,2.2949]
[1734297788814,5.45283204,218.04,217.93,2.2949]
[1734297790621,5.45283204,218.04,217.94,2.2947]
[1734297790917,5.45283204,218.04,217.88,2.54]
[1734297791720,5.45283204,218.04,217.89,2.54]
[1734297792523,5.45283204,218.04,217.94,2.2947]
[1734297793019,5.45283204,218.04,217.95,2.2946]
[1734297793517,15.90015922,218.03,217.87,5.63626401]
[1734297793717,15.90015922,218.03,217.85,1.5236]
[1734297793718,17.37975922,218.03,217.85,1.5236]
[1734297794121,2.2944,217.98,217.89,2.2953]
[1734297794319,2.54,217.97,217.89,2.2953]
[1734297794617,2.54,217.97,217.9,2.2952]
[1734297795513,2.54,217.97,217.85,6.94903301]
[1734297795514,2.54,217.97,217.85,1.5236]
[1734297795715,2.54,217.97,217.93,2.2948]
[1734297795914,5.45283204,218.04,217.88,18.44015922]
[1734297796421,5.45283204,218.04,217.99,2.2942]
[1734297797519,2.294,218.01,217.88,15.90015922]
[1734297797719,2.54,218.0,217.88,18.44015922]
[1734297799622,17.37625922,218.11,217.92,15.90015922]
[1734297799923,2.54,218.1,218.02,2.2938]
[1734297800122,2.54,218.1,217.96,2.54]
[1734297800419,2.54,218.1,217.97,1.5401]
[1734297800619,19.66925922,218.11,217.97,1.5401]
[1734297800820,2.54,218.1,217.97,1.5401]
[1734297801223,8.03618813,218.1,217.97,1.5401]
[1734297801422,8.03618813,218.1,217.93,3.0163]
[1734297801626,8.03618813,218.1,218.01,2.294]
[1734297801823,2.54,218.1,217.93,3.0163]
[1734297802024,2.54,218.1,217.94,0.84330063]
[1734297802322,2.54,218.1,218.04,2.2936]
[1734297802522,2.54,218.1,217.98,2.54]
[1734297803028,2.54,218.1,217.99,1.4543]
[1734297803424,2.54,218.14,218.08,2.2933]
[1734297804128,2.54,218.14,217.99,1.4543]
[1734297805022,2.54,218.14,218.05,2.2936]
[1734297805229,2.54,218.14,217.99,1.4543]
[1734297805429,4.8327,218.14,218.07,2.2933]
[1734297805631,2.54,218.14,217.99,1.4543]
[1734297806128,2.54,218.14,218.05,2.2935]
[1734297806323,15.90015922,218.11,217.99,1.4543]
[1734297806528,2.2931,218.1,217.99,1.4543]
[1734297806728,15.90015922,218.11,217.99,1.4543]
[1734297806923,18.44015922,218.11,217.99,1.4543]
[1734297807122,2.54,218.11,217.99,1.4543]
[1734297807530,18.44015922,218.11,217.99,1.4543]
[1734297807924,18.44015922,218.11,217.95,8.07076289]
[1734297808124,18.44015922,218.11,217.96,1.426]
[1734297809936,2.2934,218.07,218.0,2.294]
[1734297810239,2.54,218.06,218.0,2.294]
[1734297810430,2.54,218.06,217.96,1.426]
[1734297810634,2.54,218.06,218.02,2.2939]
[1734297810832,2.54,218.06,217.96,1.426]
[1734297811031,2.2931,218.1,217.96,1.426]
[1734297811232,2.54,218.11,217.96,1.426]
[1734297811427,2.54,218.11,217.99,15.90015922]
[1734297811734,2.54,218.11,217.99,18.44015922]
[1734297812132,2.54,218.11,218.07,2.2933]
[1734297812333,2.54,218.11,217.99,18.44015922]
[1734297812832,2.54,218.11,218.06,2.2934]
[1734297813026,2.54,218.11,217.99,18.44015922]
[1734297813027,2.54,218.11,217.99,2.54]
[1734297813631,2.2931,218.1,218.03,2.2938]
[1734297813836,2.54,218.11,217.96,1.426]
[1734297814036,2.54,218.11,217.97,2.54]
[1734297814235,2.54,218.11,217.96,3.966]
[1734297814531,2.2931,218.1,218.01,2.294]
[1734297814731,2.2931,218.1,217.96,3.966]
[1734297815734,2.2931,218.1,218.03,2.2938]
[1734297816434,4.8329,218.11,218.05,2.2935]
[1734297816733,2.54,218.11,217.96,19.86615922]
[1734297817336,2.54,218.11,218.05,2.2936]
[1734297817831,2.54,218.11,217.96,19.86615922]
[1734297820537,2.54,218.11,218.04,2.2934]
[1734297821441,2.54,218.11,217.96,19.86615922]
[1734297822143,2.54,218.11,217.96,1.426]
[1734297822331,15.90015922,218.1,217.96,1.426]
[1734297822730,2.54,218.11,217.96,1.426]
[1734297823538,2.293,218.09,217.96,1.426]
[1734297824333,2.293,218.09,218.02,2.2937]
[1734297825243,2.54,218.11,218.01,2.2938]
[1734297825744,2.2932,218.07,218.02,2.2937]
[1734297825942,2.54,218.06,218.02,2.2937]
[1734297826340,2.54,218.1,217.99,2.54]
[1734297826540,6.97444613,218.16,218.0,15.90015922]
[1734297826736,2.54,218.13,218.0,15.90015922]
[1734297827044,2.54,218.14,218.09,2.2929]
[1734297827241,1.5258,218.18,218.0,15.90015922]
[1734297827439,51.15924613,218.19,218.04,15.90015922]
[1734297827639,15.90015922,218.23,218.05,5.5961]
[1734297827842,5.2506,218.25,218.18,2.292]
[1734297828040,5.2506,218.25,218.08,15.90015922]
[1734297828041,2.54,218.24,218.11,2.54]
[1734297828540,2.54,218.24,218.18,2.292]
[1734297829152,2.54,218.28,218.16,2.54]
[1734297829348,2.54,218.28,218.17,2.9584]
[1734297829542,2.54,218.28,218.17,4.3735]
[1734297829740,2.54,218.28,218.24,2.2913]
[1734297830141,15.90015922,218.35,218.17,4.3735]
[1734297830346,15.90015922,218.39,218.2,15.90015922]
[1734297830658,2.54,218.37,218.21,2.54]
[1734297830949,8.147832,218.37,218.21,2.54]
[1734297831145,15.90015922,218.43,218.21,2.54]
[1734297831345,15.90015922,218.43,218.24,15.90015922]
[1734297831553,2.54,218.42,218.24,15.90015922]
[1734297831746,4.8295,218.42,218.24,15.90015922]
[1734297831943,2.54,218.42,218.24,15.90015922]
[1734297832351,7.67341484,218.42,218.24,15.90015922]
[1734297832549,2.54,218.41,218.24,15.90015922]
[1734297833251,2.54,218.41,218.28,2.2908]
[1734297833552,2.2897,218.4,218.29,2.2908]
[1734297833856,2.54,218.41,218.25,2.54]
[1734297834553,2.54,218.41,218.28,5.38664412]
[1734297834854,2.54,218.41,218.29,4.4925]
[1734297835050,2.54,218.42,218.3,2.54]
[1734297835452,2.54,218.41,218.3,2.54]
[1734297836853,1.4801,218.47,218.3,2.54]
[1734297836854,2.2892,218.45,218.3,2.54]
[1734297837058,2.54,218.44,218.3,2.54]
[1734297837260,8.14445597,218.47,218.3,2.54]
[1734297838059,8.14445597,218.47,218.32,15.90015922]
[1734297838357,1.5578,218.51,218.32,15.90015922]
[1734297838358,2.54,218.48,218.32,15.90015922]
[1734297838554,2.54,218.48,218.42,2.2894]
[1734297838948,2.2885,218.52,218.38,2.5]
[1734297839147,2.2885,218.52,218.43,2.2893]
[1734297839148,4.7885,218.52,218.43,2.2893]
[1734297839754,4.7885,218.52,218.44,2.2892]
[1734297839755,2.5,218.52,218.44,2.2892]
[1734297840554,2.5,218.52,218.4,2.929]
[1734297840759,2.5,218.56,218.4,18.82915922]
[1734297841260,2.5,218.56,218.44,2.2892]
[1734297841449,2.5,218.56,218.44,2.5]
[1734297841759,2.5,218.58,218.44,2.5]
[1734297842558,2.288,218.57,218.45,5.39333048]
[1734297843064,2.5,218.58,218.5,2.2886]
[1734297843752,7.72564895,218.59,218.5,2.2886]
[1734297843959,2.5,218.58,218.45,5.39333048]
[1734297844160,2.5,218.58,218.51,2.2885]
[1734297844351,2.288,218.56,218.45,5.39333048]
[1734297844552,2.5,218.58,218.49,2.2887]
[1734297844860,2.5,218.58,218.45,5.39333048]
[1734297845355,2.5,218.58,218.52,2.2884]
[1734297845562,2.2876,218.6,218.52,2.2884]
[1734297845754,2.5,218.59,218.52,2.2884]
[1734297846157,2.5,218.59,218.45,5.39333048]
[1734297846759,2.5,218.59,218.4,2.929]
[1734297846963,15.90015922,218.56,218.42,5.36139668]
[1734297847859,2.2886,218.51,218.4,2.929]
[1734297848058,2.5,218.5,218.4,2.929]
[1734297848257,4.7888,218.49,218.41,2.2895]
[1734297848462,2.5,218.48,218.41,2.2895]
[1734297848655,2.5,218.48,218.4,2.929]
[1734297848656,2.5,218.48,218.4,1.4664]
[1734297848962,2.2892,218.45,218.33,1.485]
[1734297849158,2.2892,218.45,218.33,3.0487]
[1734297849367,2.5,218.48,218.33,3.0487]
[1734297849561,2.2893,218.44,218.37,2.29]
[1734297849762,2.5,218.43,218.37,2.29]
[1734297851663,2.2897,218.41,218.33,2.2903]
[1734297851962,2.5,218.43,218.28,15.90015922]
[1734297852358,2.2897,218.41,218.28,15.90015922]
[1734297852567,2.5,218.4,218.28,15.90015922]
[1734297852760,2.5,218.39,218.29,7.74598646]
[1734297853063,15.90015922,218.44,218.29,7.74598646]
[1734297853064,2.5,218.41,218.29,5.45518646]
[1734297853261,2.5,218.4,218.29,5.45518646]
[1734297854764,2.2899,218.38,218.3,2.2907]
[1734297855356,2.5,218.4,218.29,5.45518646]
[1734297856266,2.5,218.4,218.26,1.4809]
[1734297856860,18.40015922,218.4,218.26,1.4809]
[1734297857266,2.2904,218.33,218.26,1.4809]
[1734297857465,2.5,218.32,218.26,1.4809]
[1734297857859,2.2908,218.3,218.22,2.2915]
[1734297858063,2.5,218.32,218.22,2.2915]
[1734297858663,2.2907,218.3,218.23,2.2914]
[1734297859259,2.2909,218.29,218.21,2.2916]
[1734297859659,18.40015922,218.32,218.18,3.0032]
[1734297859860,18.40015922,218.32,218.2,2.2918]
[1734297859861,2.2911,218.27,218.2,2.2918]
[1734297860065,2.5,218.26,217.93,0.43626]
[1734297860263,15.90015922,218.24,218.1,1.5304]
[1734297860464,2.5,218.23,218.1,1.5304]
[1734297860867,2.5,218.23,218.0,2.5]
[1734297861068,2.5,218.23,218.08,1.5304]
[1734297861561,2.2918,218.21,218.12,2.2925]
[1734297861765,2.5,218.23,218.12,2.2925]
[1734297862270,2.5,218.22,218.1,21.4472143]
[1734297862571,2.5,218.21,218.11,0.84259618]
[1734297862870,2.5,218.2,218.1,21.4472143]
[1734297863071,2.9977,218.28,218.1,21.4472143]
[1734297863279,2.5,218.27,218.11,0.84262159]
[1734297863676,2.2916,218.23,218.14,2.2924]
[1734297863876,2.5,218.22,218.14,2.2924]
[1734297864578,2.5,218.22,218.12,2.2925]
[1734297864579,2.2918,218.2,218.12,2.2925]
[1734297864878,18.40015922,218.22,218.08,1.5304]
[1734297865778,2.2921,218.17,218.08,3.8234]
[1734297865974,2.5,218.16,218.08,3.8234]
[1734297866574,4.7922,218.16,218.09,2.2929]
[1734297867883,2.2923,218.15,218.08,3.8234]
[1734297868982,2.48,218.14,218.09,2.2929]
[1734297870479,2.2917,218.21,218.08,1.5304]
[1734297870777,2.48,218.2,218.09,15.90015922]
[1734297870984,2.48,218.22,218.13,2.2924]
[1734297871283,2.48,218.22,218.13,15.90015922]
[1734297872284,2.48,218.22,218.2,2.2918]
[1734297872579,2.48,218.22,218.1,2.48]
[1734297872785,2.48,218.22,218.11,0.84259341]
[1734297872982,2.48,218.22,218.1,2.48]
[1734297873281,2.48,218.22,218.11,0.84257335]
[1734297873477,2.48,218.23,218.18,2.292]
[1734297873675,2.48,218.23,218.1,2.48]
[1734297873873,2.48,218.23,218.11,0.84255854]
[1734297874274,2.48,218.23,218.2,2.2918]
[1734297874683,2.48,218.23,218.1,2.48]
[1734297874883,2.48,218.23,218.09,18.38015922]
[1734297875081,2.48,218.23,218.09,2.48]
[1734297875479,4.7715,218.23,218.14,2.2924]
[1734297875984,2.2916,218.22,218.14,2.2924]
[1734297876788,2.2917,218.21,218.14,2.2924]
[1734297876988,15.90015922,218.22,218.12,2.2925]
[1734297878181,2.2918,218.2,218.13,2.2925]
[1734297879288,15.90015922,218.22,218.08,1.5304]
[1734297879494,2.292,218.18,218.11,2.2926]
[1734297879695,2.48,218.17,218.08,1.5304]
[1734297880295,2.48,218.17,218.11,2.2926]
[1734297881090,2.48,218.17,218.12,2.2926]
[1734297884996,2.48,218.17,218.08,1.5304]
[1734297885198,2.48,218.17,218.13,2.2925]
[1734297887900,2.48,218.16,218.13,2.2925]
[1734297888407,2.48,218.16,218.08,1.5304]
[1734297889204,15.90015922,218.26,218.08,1.5304]
[1734297889416,15.90015922,218.3,218.08,1.5304]
[1734297889608,2.48,218.28,218.09,0.84256141]
[1734297889801,2.291,218.27,218.09,0.84256141]
[1734297890197,2.291,218.27,218.14,2.2924]
[1734297890402,2.291,218.27,218.13,2.48]
[1734297890903,2.2911,218.26,218.19,2.2918]
[1734297892003,2.2914,218.24,218.17,2.292]
[1734297892199,2.2914,218.24,218.13,2.48]
[1734297892200,2.48,218.23,218.13,2.48]
[1734297893208,2.48,218.23,218.11,15.90015922]
[1734297893408,2.48,218.23,218.14,2.2923]
[1734297893604,15.90015922,218.22,218.08,1.5304]
[1734297894409,2.292,218.18,218.11,2.2927]
[1734297894709,2.48,218.17,218.11,2.2927]
[1734297895403,2.48,218.17,218.08,1.5304]
[1734297896105,2.2924,218.14,218.08,3.8234]
[1734297898709,2.2924,218.14,218.08,1.5304]
[1734297899016,2.2924,218.14,218.08,3.8234]
[1734297899506,2.2923,218.16,218.08,3.8234]
[1734297899916,2.48,218.17,218.08,3.8234]
[1734297900211,2.2923,218.15,218.08,3.8234]
[1734297900614,2.38,218.17,218.08,1.5304]
[1734297901114,2.38,218.17,218.13,2.2924]
[1734297901315,2.38,218.17,218.08,1.5304]
[1734297901712,2.38,218.17,218.11,2.2926]
[1734297902210,2.38,218.17,218.08,1.5304]
[1734297902419,9.91066691,218.24,218.08,11.44106691]
[1734297902612,2.38,218.23,218.08,11.44106691]
[1734297903012,4.6716,218.23,218.15,2.2922]
[1734297903209,2.38,218.23,218.1,2.38]
[1734297903711,2.38,218.23,218.11,9.91066691]
[1734297903907,2.38,218.24,218.11,9.91066691]
[1734297904910,2.38,218.24,218.19,2.2919]
[1734297905216,12.29066691,218.24,218.1,2.38]
[1734297906512,14.58206691,218.24,218.1,2.38]
[1734297907018,2.2915,218.23,218.1,2.38]
[1734297907217,12.29066691,218.24,218.1,2.38]
[1734297907514,2.2916,218.22,218.16,2.2922]
[1734297907917,9.91066691,218.21,218.08,1.5304]
[1734297908221,9.91066691,218.18,218.08,1.5304]
[1734297908915,9.91066691,218.18,218.13,2.2924]
[1734297909416,9.91066691,218.18,218.12,2.2926]
[1734297910617,9.91066691,218.18,218.13,2.2925]
[1734297911219,12.20276691,218.18,218.08,1.5304]
[1734297911713,12.20276691,218.18,218.11,2.2926]
[1734297911917,9.91066691,218.15,218.08,1.5304]
[1734297912119,9.91066691,218.12,218.06,1.5641]
[1734297912314,2.38,218.11,218.06,1.5641]
[1734297912923,9.91066691,218.09,218.02,1.5159]
[1734297913119,2.38,218.11,218.02,1.5159]
[1734297913120,9.91066691,218.06,218.02,1.5159]
[1734297913422,12.29066691,218.06,218.02,1.5159]
[1734297913622,12.29066691,218.06,218.0,5.61480704]
[1734297914019,2.38,218.06,218.0,5.61480704]
[1734297914216,2.38,218.06,217.99,2.294]
[1734297914618,2.38,218.06,217.96,1.4949]
[1734297915618,2.38,218.06,217.98,5.56392239]
[1734297916425,2.38,218.06,217.96,1.4949]
[1734297916720,15.87591056,218.05,217.99,0.33637]
[1734297917124,2.2937,218.02,217.99,0.33637]
[1734297917324,2.38,218.01,217.99,0.33637]
[1734297918622,18.25591056,218.01,217.99,0.33637]
[1734297919330,2.2939,218.0,217.99,0.33637]
[1734297919728,18.25591056,218.01,217.9,5.38869851]
[1734297920028,18.25591056,218.01,217.89,1.4498]
[1734297920029,2.2941,217.98,217.89,1.4498]
[1734297920218,18.25591056,218.01,217.89,1.4498]
[1734297920419,2.2944,217.95,217.89,2.295]
[1734297920727,2.2944,217.95,217.83,1.4999]
[1734297920728,2.38,217.94,217.84,1.5681]
[1734297921031,15.87591056,217.97,217.88,2.2951]
[1734297921032,2.38,217.93,217.88,2.2951]
[1734297921218,2.38,217.93,217.84,1.5681]
[1734297921418,18.25591056,217.93,217.84,1.5681]
[1734297921923,2.2949,217.9,217.76,2.38]
[1734297922123,2.2949,217.9,217.77,3.1214]
[1734297922326,2.2948,217.91,217.83,2.2957]
[1734297922628,18.25591056,217.93,217.77,3.1214]
[1734297924323,18.25591056,217.93,217.81,5.55283515]
[1734297924527,2.2948,217.91,217.82,2.2957]
[1734297925424,15.87591056,217.89,217.57,32.08351176]
[1734297925623,15.87591056,217.89,217.78,5.4552913]
[1734297925929,2.38,217.88,217.78,5.4552913]
[1734297926428,2.38,217.88,217.81,2.2958]
[1734297926625,2.38,217.88,217.78,5.4552913]
[1734297927329,15.87591056,217.97,217.78,5.4552913]
[1734297927526,2.38,217.96,217.78,5.4552913]
[1734297928531,4.6744,217.96,217.87,2.2952]
[1734297929132,4.6744,217.96,217.81,2.38]
[1734297929133,2.38,217.96,217.81,2.38]
[1734297930834,15.87591056,217.93,217.78,5.4552913]
[1734297932033,5.49166358,217.98,217.78,5.4552913]
[1734297932229,2.4,217.97,217.78,5.4552913]
[1734297932433,2.4,217.96,217.78,5.4552913]
[1734297932626,4.6944,217.96,217.78,5.4552913]
[1734297933229,4.6944,217.96,217.89,2.295]
[1734297934137,4.6944,217.96,217.87,2.2951]
[1734297934540,2.4,217.96,217.82,2.4]
[1734297934735,2.4,217.96,217.86,2.2953]
[1734297935436,2.4,217.96,217.82,2.4]
[1734297936135,9.9336436,217.94,217.82,2.4]
[1734297936632,2.4,217.96,217.85,9.9336436]
[1734297936938,2.4,217.96,217.86,4.4198]
[1734297937131,9.9336436,217.97,217.86,4.4198]
[1734297937331,2.4,217.96,217.86,4.4198]
[1734297938141,2.4,217.96,217.91,2.2948]
[1734297938838,2.4,217.96,217.89,2.295]
[1734297939034,12.2281436,217.94,217.86,4.4198]
[1734297939638,12.2281436,217.94,217.86,2.9627]
[1734297939841,12.2281436,217.94,217.86,1.5385]
[1734297940036,9.9336436,217.91,217.86,1.5385]
[1734297940236,2.4,217.9,217.85,2.2954]
[1734297942342,2.4,217.9,217.84,2.2955]
[1734297942939,2.4,217.9,217.81,1.4537]
[1734297943143,9.9336436,217.88,217.81,1.4537]
[1734297943439,9.9336436,217.88,217.8,2.8901]
[1734297943440,9.9336436,217.88,217.8,1.4748]
[1734297943634,2.2954,217.86,217.79,2.2961]
[1734297943838,12.3336436,217.85,217.79,2.2961]
[1734297944440,2.2957,217.83,217.78,0.28661]
[1734297945240,12.3336436,217.85,217.78,2.58281]
[1734297945241,2.2956,217.84,217.78,2.58281]
[1734297947337,12.3336436,217.85,217.78,0.28661]
[1734297947538,3.0409,217.91,217.78,0.28661]
[1734297947744,9.9336436,217.88,217.78,0.28661]
[1734297947943,2.4,217.9,217.78,0.28661]
[1734297947944,9.9336436,217.85,217.78,0.28661]
[1734297948140,9.9336436,217.82,217.78,0.28661]
[1734297948337,2.4,217.81,217.78,0.28661]
[1734297948538,9.9336436,217.85,217.78,0.28661]
[1734297948840,2.4,217.84,217.78,0.28661]
[1734297949037,2.4,217.83,217.78,0.28661]
[1734297950139,2.4,217.83,217.8,2.2959]
[1734297950542,2.4,217.83,217.78,0.28661]
[1734297951540,2.4,217.83,217.79,2.2961]
[1734297952046,12.2288436,217.88,217.78,0.28661]